bitfinex/quotes_BTCUSD_20250213
["timestamp","ask_amount","ask_price","bid_price","bid_amount"]
[1739448267866,0.3203765,96092.0,96091.0,0.00322365]
[1739448268270,0.4764765,96092.0,96091.0,0.00322365]
[1739448269883,0.3203765,96092.0,96091.0,0.00322365]
[1739448270711,0.4764765,96092.0,96091.0,0.00322365]
[1739448274407,0.57898015,96092.0,96091.0,0.00322365]
[1739448274607,0.65598015,96092.0,96091.0,0.00322365]
[1739448277059,0.3203765,96092.0,96091.0,0.00322365]
[1739448277237,0.4764765,96092.0,96091.0,0.00322365]
[1739448277657,0.3203765,96092.0,96091.0,0.00322365]
[1739448277861,0.0001765,96092.0,96091.0,0.15932565]
[1739448280072,0.0001765,96092.0,96091.0,0.00322365]
[1739448280460,0.0001765,96092.0,96091.0,0.15932565]
[1739448281825,0.0001765,96092.0,96091.0,0.00322365]
[1739448282249,0.1562765,96092.0,96091.0,0.00322365]
[1739448283027,0.1562765,96092.0,96091.0,0.00287365]
[1739448284568,0.0001765,96092.0,96091.0,0.00287365]
[1739448285361,0.1562765,96092.0,96091.0,0.00287365]
[1739448288419,0.0001765,96092.0,96091.0,0.00287365]
[1739448289045,0.1562765,96092.0,96091.0,0.00287365]
[1739448290635,0.1562765,96092.0,96091.0,0.0030973]
[1739448292213,0.0001765,96092.0,96091.0,0.0030973]
[1739448294678,0.1562765,96092.0,96091.0,0.0030973]
[1739448296055,0.2058765,96092.0,96091.0,0.0030973]
[1739448300455,0.30838015,96092.0,96091.0,0.0030973]
[1739448301552,0.1562765,96092.0,96091.0,0.0030973]
[1739448301957,0.4764765,96092.0,96091.0,0.0030973]
[1739448303357,0.3203765,96092.0,96091.0,0.0030973]
[1739448304725,0.4764765,96092.0,96091.0,0.0030973]
[1739448305838,0.3203765,96092.0,96083.0,0.208153]
[1739448306032,0.156103,96091.0,96085.0,0.15611]
[1739448306538,0.156103,96091.0,96079.0,0.254061]
[1739448306539,0.156102,96091.0,96082.0,0.156116]
[1739448306717,0.156104,96090.0,96079.0,0.0459]
[1739448306878,0.156102,96091.0,96083.0,0.208153]
[1739448307082,0.3203765,96092.0,96086.0,0.208146]
[1739448307285,0.3203765,96092.0,96090.0,0.156102]
[1739448307689,0.3203765,96092.0,96091.0,0.156102]
[1739448308520,0.3203765,96092.0,96087.0,0.156106]
[1739448308719,0.3203765,96092.0,96088.0,0.156106]
[1739448308967,0.3203765,96092.0,96079.0,0.0459]
[1739448309144,0.3203765,96092.0,96091.0,0.156102]
[1739448310925,0.3203765,96092.0,96091.0,0.159102]
[1739448313334,0.3203765,96092.0,96091.0,0.003]
[1739448313890,0.0001765,96092.0,96091.0,0.00322365]
[1739448314545,0.0001765,96092.0,96091.0,0.15932565]
[1739448320880,0.0001765,96092.0,96091.0,0.00322365]
[1739448321048,0.0001765,96092.0,96091.0,0.15932565]
[1739448322507,0.0001765,96092.0,96091.0,0.24212565]
[1739448322975,0.0001765,96092.0,96091.0,0.3938293]
[1739448323168,0.0001765,96092.0,96091.0,0.5438293]
[1739448323549,0.0001765,96092.0,96091.0,0.5408293]
[1739448324128,0.0001765,96092.0,96091.0,0.5478293]
[1739448324721,8.962e-05,96092.0,96091.0,0.5478293]
[1739448325103,8.962e-05,96092.0,96091.0,0.5528293]
[1739448325303,8.962e-05,96092.0,96091.0,0.5458293]
[1739448325528,8.962e-05,96092.0,96091.0,0.5408293]
[1739448325738,8.962e-05,96092.0,96091.0,0.5548293]
[1739448328675,8.962e-05,96092.0,96091.0,0.57560144]
[1739448329344,8.962e-05,96092.0,96091.0,0.52640144]
[1739448329749,8.962e-05,96092.0,96091.0,0.5056293]
[1739448330149,8.962e-05,96092.0,96091.0,0.01422365]
[1739448330350,0.15618962,96092.0,96091.0,0.01422365]
[1739448330758,0.16880179,96092.0,96091.0,0.01422365]
[1739448331359,0.16880179,96092.0,96091.0,0.00722365]
[1739448331746,0.16880179,96092.0,96091.0,0.00522365]
[1739448332130,0.0167834,96092.0,96091.0,0.01222365]
[1739448332401,0.1728834,96092.0,96091.0,0.00722365]
[1739448332583,0.1728834,96092.0,96091.0,0.00322365]
[1739448332788,0.1728834,96092.0,96091.0,0.00822365]
[1739448335353,0.1728834,96092.0,96091.0,0.00822365]
[1739448335782,0.16027123,96092.0,96091.0,0.00822365]
[1739448335955,0.16027123,96092.0,96091.0,0.00022365]
[1739448336402,0.16027123,96092.0,96091.0,0.00322365]
[1739448337006,0.16037773,96092.0,96091.0,0.00322365]
[1739448337449,0.00427773,96092.0,96091.0,0.00322365]
[1739448338197,0.16155846,96092.0,96091.0,0.00022365]
[1739448338430,0.00545846,96092.0,96091.0,0.00322365]
[1739448338641,0.00545846,96092.0,96091.0,0.00022365]
[1739448338864,0.00545846,96092.0,96091.0,0.00122365]
[1739448339048,0.00545846,96092.0,96091.0,0.00422365]
[1739448339247,0.16155846,96092.0,96091.0,0.00422365]
[1739448340442,0.16155846,96092.0,96091.0,0.00322365]
[1739448340646,0.26406211,96092.0,96091.0,0.00422365]
[1739448341078,0.26406211,96092.0,96091.0,0.00322365]
[1739448341275,0.26406211,96092.0,96091.0,0.00022365]
[1739448341482,0.26406211,96092.0,96091.0,0.00222365]
[1739448341862,0.31196211,96092.0,96091.0,0.00022365]
[1739448342288,0.31196211,96092.0,96091.0,0.00222365]
[1739448343619,0.63216211,96092.0,96091.0,0.00222365]
[1739448345148,0.52965846,96092.0,96091.0,0.00222365]
[1739448348113,0.48175846,96092.0,96091.0,0.00222365]
[1739448350219,0.32565846,96092.0,96091.0,0.00222365]
[1739448350620,0.48175846,96092.0,96091.0,0.00222365]
[1739448351455,0.48175846,96092.0,96091.0,0.00022365]
[1739448351999,0.48175846,96092.0,96091.0,0.00222365]
[1739448352196,0.48175846,96092.0,96091.0,0.00022365]
[1739448352626,0.48175846,96092.0,96091.0,0.00422365]
[1739448354241,0.61155846,96092.0,96091.0,0.00522365]
[1739448354625,0.61155846,96092.0,96091.0,0.00422365]
[1739448354793,0.61155846,96092.0,96091.0,0.00022365]
[1739448355002,0.71406211,96092.0,96091.0,0.00322365]
[1739448355415,1.02826211,96092.0,96091.0,0.00022365]
[1739448355637,1.02826211,96092.0,96091.0,0.00222365]
[1739448355884,0.89846211,96092.0,96091.0,0.00222365]
[1739448357457,0.90003705,96092.0,96091.0,0.00222365]
[1739448358548,0.7975334,96092.0,96091.0,0.00222365]
[1739448359577,0.98313705,96092.0,96091.0,0.00222365]
[1739448361436,0.4833334,96092.0,96091.0,0.00222365]
[1739448362569,0.58583705,96092.0,96091.0,0.00222365]
[1739448363581,0.66633705,96092.0,96091.0,0.00222365]
[1739448363815,1.18003705,96092.0,96091.0,0.00222365]
[1739448364015,1.3194734,96092.0,96091.0,0.00222365]
[1739448364313,1.28003705,96092.0,96091.0,0.00222365]
[1739448364514,1.28003705,96092.0,96091.0,0.00022365]
[1739448365167,1.18003705,96092.0,96091.0,0.00022365]
[1739448365748,1.18103705,96092.0,96091.0,0.00122365]
[1739448368072,1.31403705,96092.0,96091.0,0.00122365]
[1739448369439,1.30403705,96092.0,96091.0,0.00122365]
[1739448370189,1.30303705,96092.0,96091.0,0.00022365]
[1739448370939,1.30403705,96092.0,96091.0,0.00122365]
[1739448371385,1.30503705,96092.0,96091.0,0.00122365]
[1739448372680,1.30503705,96092.0,96091.0,6.5e-07]
[1739448373170,1.4075407,96092.0,96091.0,6.5e-07]
[1739448373514,1.43752663,96092.0,96091.0,6.5e-07]
[1739448374029,0.30611,96086.0,96085.0,1e-08]
[1739448374226,0.41476365,96086.0,96085.0,1e-08]
[1739448375143,0.156136,96070.0,96063.0,0.00022386]
[1739448375344,0.25868367,96070.0,96063.0,0.00022386]
[1739448375649,0.26483367,96070.0,96063.0,0.00022386]
[1739448376031,0.58503367,96070.0,96063.0,0.00022386]
[1739448376238,0.156145,96064.0,96063.0,8.6e-07]
[1739448376406,0.33584865,96064.0,96063.0,8.6e-07]
[1739448376615,0.156181,96042.0,96041.0,0.08322194]
[1739448376818,0.476381,96042.0,96041.0,0.08322194]
[1739448377025,0.156188,96038.0,96037.0,0.0793]
[1739448377233,0.156197,96032.0,96031.0,0.0463]
[1739448377391,0.16231988,96032.0,96031.0,0.0463]
[1739448377598,0.00612288,96032.0,96023.0,0.0765]
[1739448377831,0.15621,96024.0,96023.0,0.0765]
[1739448378035,0.16231335,96024.0,96023.0,0.0765]
[1739448378280,0.16235732,96024.0,96023.0,0.0765]
[1739448379118,0.00614732,96024.0,96023.0,0.0815]
[1739448379432,4.397e-05,96024.0,96023.0,0.0815]
[1739448379570,0.00714629,96024.0,96023.0,0.0815]
[1739448379923,0.00104397,96024.0,96023.0,0.0815]
[1739448380665,0.00104397,96024.0,96023.0,0.33504505]
[1739448380915,0.00104397,96024.0,96023.0,0.33400365]
[1739448381674,4.397e-05,96024.0,96023.0,0.38380365]
[1739448382045,0.00104397,96024.0,96023.0,0.37880365]
[1739448382241,0.00104397,96024.0,96023.0,0.38580365]
[1739448382441,4.397e-05,96024.0,96023.0,0.40880365]
[1739448382794,0.00104397,96024.0,96023.0,0.40880365]
[1739448382972,0.00104397,96024.0,96023.0,0.40902751]
[1739448383588,0.00104397,96024.0,96023.0,0.42980091]
[1739448384559,4.397e-05,96024.0,96023.0,0.42280091]
[1739448384767,4.397e-05,96024.0,96023.0,0.40902751]
[1739448384975,0.00104397,96024.0,96023.0,0.41602751]
[1739448385585,0.0009982,96043.0,96024.0,0.15]
[1739448385790,0.0009982,96043.0,96042.0,0.233381]
[1739448385791,0.00104223,96043.0,96042.0,0.233381]
[1739448386181,4.403e-05,96043.0,96042.0,0.233381]
[1739448387283,4.403e-05,96043.0,96042.0,0.237381]
[1739448388654,4.403e-05,96043.0,96042.0,0.240381]
[1739448390085,4.403e-05,96043.0,96042.0,0.0842]
[1739448390292,4.403e-05,96043.0,96042.0,0.240381]
[1739448390980,0.15622403,96043.0,96042.0,0.007]
[1739448391437,0.00615207,96043.0,96042.0,0.007]
[1739448391659,0.16233207,96043.0,96042.0,0.007]
[1739448391831,0.00615207,96043.0,96042.0,0.007]
[1739448392409,0.16233207,96043.0,96042.0,0.007]
[1739448393115,0.00615207,96043.0,96042.0,0.007]
[1739448393664,0.16233207,96043.0,96042.0,0.007]
[1739448395262,0.58503572,96043.0,96042.0,0.007]
[1739448395616,0.63103572,96043.0,96042.0,0.007]
[1739448395786,0.65145033,96043.0,96042.0,0.004]
[1739448395966,0.96565033,96043.0,96042.0,0.005]
[1739448396312,0.94523572,96043.0,96042.0,0.005]
[1739448397026,0.94523572,96043.0,96042.0,0.001]
[1739448397433,0.156209,96025.0,96024.0,0.00022386]
[1739448397641,0.16227891,96025.0,96024.0,0.00022386]
[1739448398509,0.00606991,96025.0,96024.0,0.00322386]
[1739448398915,0.156202,96029.0,96024.0,0.00322386]
[1739448399115,0.00606991,96025.0,96024.0,0.00722386]
[1739448399320,0.156204,96028.0,96024.0,0.00722386]
[1739448399521,0.00606991,96025.0,96024.0,0.00722386]
[1739448400025,0.32024403,96043.0,96024.0,0.00722386]
[1739448400392,0.156195,96034.0,96027.0,0.156204]
[1739448400585,0.208258,96035.0,96024.0,0.00322386]
[1739448400872,0.208263,96033.0,96024.0,0.00622386]
[1739448401011,0.208263,96033.0,96024.0,0.00022386]
[1739448401410,0.00606991,96032.0,96024.0,0.00222386]
[1739448401693,0.156195,96034.0,96024.0,0.00222386]
[1739448402041,0.156195,96034.0,96024.0,0.00122386]
[1739448402267,0.156198,96032.0,96025.0,0.156209]
[1739448402443,0.32024403,96043.0,96024.0,0.00022386]
[1739448402623,0.156206,96027.0,96024.0,0.00022386]
[1739448403043,0.156209,96025.0,96024.0,0.00022386]
[1739448403243,0.476409,96025.0,96024.0,0.00022386]
[1739448403448,0.48244176,96025.0,96024.0,0.00022386]
[1739448403668,0.48244176,96025.0,96024.0,0.00122386]
[1739448404018,0.48244176,96025.0,96024.0,0.00022386]
[1739448404429,0.48244176,96025.0,96024.0,0.00622386]
[1739448405045,0.58494541,96025.0,96024.0,0.00822386]
[1739448405323,0.89914541,96025.0,96024.0,0.01122386]
[1739448406046,0.89914541,96025.0,96024.0,0.00822386]
[1739448406274,0.156235,96009.0,96004.0,0.00022365]
[1739448406694,0.16225862,96009.0,96004.0,0.00022365]
[1739448406900,0.17472538,96009.0,96004.0,0.00022365]
[1739448407113,0.23840021,96009.0,96004.0,0.00022365]
[1739448407315,0.27023762,96009.0,96004.0,0.00022365]
[1739448407519,0.27023762,96009.0,96008.0,0.00066479]
[1739448408212,0.27223762,96009.0,96008.0,0.00066479]
[1739448409289,0.156258,95995.0,95994.0,2.888e-05]
[1739448409489,0.15669836,95995.0,95994.0,2.888e-05]
[1739448409650,0.16265137,95995.0,95994.0,2.888e-05]
[1739448410319,0.00639337,95995.0,95994.0,2.888e-05]
[1739448410448,0.00788162,95995.0,95994.0,2.888e-05]
[1739448410651,0.16413962,95995.0,95994.0,0.00802888]
[1739448410860,0.22781445,95995.0,95994.0,0.00802888]
[1739448411059,0.25965186,95995.0,95994.0,0.00802888]
[1739448411589,0.10339386,95995.0,95994.0,0.00802888]
[1739448412448,0.10339386,95995.0,95994.0,0.16428788]
[1739448412832,0.09744085,95995.0,95994.0,0.16428788]
[1739448413081,0.0959526,95995.0,95994.0,0.16428788]
[1739448414499,0.08944164,95995.0,95994.0,0.16428788]
[1739448415223,0.12050539,95995.0,95994.0,0.16428788]
[1739448415407,0.12794665,95995.0,95994.0,0.16428788]
[1739448418121,0.0968829,95995.0,95994.0,0.16428788]
[1739448418481,0.08944164,95995.0,95994.0,0.16428788]
[1739448419305,0.07641972,95995.0,95994.0,0.16428788]
[1739448422122,0.07641972,95995.0,95994.0,0.00802888]
[1739448422335,0.23267772,95995.0,95994.0,0.00802888]
[1739448422543,0.24007608,95995.0,95994.0,0.00802888]
[1739448423422,0.28416175,95995.0,95994.0,0.00802888]
[1739448423742,0.30686574,95995.0,95994.0,0.00802888]
[1739448424350,0.27580199,95995.0,95994.0,0.00802888]
[1739448424750,0.11954399,95995.0,95994.0,0.00802888]
[1739448425031,0.11954399,95995.0,95994.0,0.16428788]
[1739448425512,0.11954399,95995.0,95994.0,0.16028788]
[1739448425662,0.10335096,95995.0,95994.0,0.16028788]
[1739448426322,0.10335096,95995.0,95994.0,0.15628788]
[1739448426475,0.10335096,95995.0,95994.0,0.15928788]
[1739448426683,0.10335096,95995.0,95994.0,0.16228788]
[1739448427086,0.10335096,95995.0,95994.0,0.15628788]
[1739448427290,0.10335096,95995.0,95994.0,0.16028788]
[1739448427689,0.10335096,95995.0,95994.0,0.16428788]
[1739448428363,0.10335096,95995.0,95994.0,0.00802888]
[1739448428494,0.24658704,95995.0,95994.0,0.00802888]
[1739448428856,0.09032904,95995.0,95994.0,0.00802888]
[1739448429643,0.24658704,95995.0,95994.0,0.00802888]
[1739448430185,0.26278007,95995.0,95994.0,2.888e-05]
[1739448430388,0.26278007,95995.0,95994.0,0.00302888]
[1739448430820,0.26278007,95995.0,95994.0,0.00602888]
[1739448431165,0.30687668,95995.0,95994.0,0.00602888]
[1739448431523,0.61088365,95995.0,95994.0,0.00302888]
[1739448431723,0.61088365,95995.0,95989.0,0.00022365]
[1739448431724,0.156266,95990.0,95989.0,0.00022365]
[1739448431937,0.25876965,95990.0,95989.0,0.00022365]
[1739448432151,0.26615388,95990.0,95989.0,0.00022365]
[1739448432773,0.31680679,95990.0,95989.0,0.00022365]
[1739448433369,0.1923782,95990.0,95974.0,0.156291]
[1739448433572,0.1963782,95990.0,95972.0,0.00022365]
[1739448433796,0.156277,95983.0,95972.0,0.00022365]
[1739448434172,0.16358872,95983.0,95972.0,0.00022365]
[1739448434975,0.53444163,95983.0,95972.0,0.00022365]
[1739448435175,0.56627904,95983.0,95972.0,0.00022365]
[1739448435782,0.66978269,95983.0,95972.0,0.00022365]
[1739448436336,0.66878269,95983.0,95972.0,0.00022365]
[1739448436536,0.60916452,95983.0,95972.0,0.00022365]
[1739448436796,0.89386452,95983.0,95972.0,0.00022365]
[1739448437499,0.89586452,95983.0,95972.0,0.00022365]
[1739448437746,0.89086452,95983.0,95972.0,0.00022365]
[1739448438001,0.89386452,95983.0,95972.0,0.00022365]
[1739448438485,0.89086452,95983.0,95972.0,0.00022365]
[1739448438720,0.89386452,95983.0,95972.0,0.00022365]
[1739448438953,0.89786452,95983.0,95972.0,0.00022365]
[1739448439430,0.89386452,95983.0,95972.0,0.00022365]
[1739448439703,0.89986452,95983.0,95972.0,0.00022365]
[1739448441806,1.20386452,95983.0,95972.0,0.00022365]
[1739448442969,1.20408839,95983.0,95972.0,0.00022365]
[1739448443406,1.05408839,95983.0,95972.0,0.00022365]
[1739448443726,0.97208839,95983.0,95972.0,0.00022365]
[1739448445353,0.92238839,95983.0,95972.0,0.00022365]
[1739448447556,0.95351128,95983.0,95972.0,0.00022365]
[1739448447711,0.156315,95960.0,95959.0,0.00022365]
[1739448448126,0.26637185,95960.0,95959.0,0.00022365]
[1739448448323,0.29820926,95960.0,95959.0,0.00022365]
[1739448448760,0.31021243,95960.0,95959.0,0.00022365]
[1739448448932,0.31021243,95960.0,95959.0,0.00035579]
[1739448449388,0.36078718,95960.0,95959.0,0.00335579]
[1739448449698,0.36078718,95960.0,95959.0,0.00735579]
[1739448449976,0.36078718,95960.0,95959.0,0.00035579]
[1739448450180,0.36378718,95960.0,95959.0,0.00035579]
[1739448451125,0.36878718,95960.0,95959.0,0.00035579]
[1739448453581,0.9828033,95960.0,95959.0,0.00035579]
[1739448455404,0.95168041,95960.0,95959.0,0.00035579]
[1739448456960,0.84917676,95960.0,95959.0,0.00035579]
[1739448457163,0.69286176,95960.0,95959.0,0.00035579]
[1739448457377,0.84917676,95960.0,95959.0,0.00035579]
[1739448458172,0.84417676,95960.0,95959.0,0.00035579]
[1739448459016,0.87530928,95960.0,95959.0,0.00035579]
[1739448459218,0.87230928,95960.0,95959.0,0.00035579]
[1739448459423,0.56830928,95960.0,95959.0,0.00235579]
[1739448460250,0.67081293,95960.0,95959.0,0.00035579]
[1739448460574,0.67181293,95960.0,95959.0,0.00035579]
[1739448460896,0.67681293,95960.0,95959.0,0.00035579]
[1739448461078,0.67181293,95960.0,95959.0,0.00035579]
[1739448461251,0.79811293,95960.0,95959.0,0.00035579]
[1739448461452,0.156324,95954.0,95945.0,0.00022386]
[1739448461620,0.25882765,95954.0,95953.0,0.00032925]
[1739448462035,0.2663231,95954.0,95953.0,0.00032925]
[1739448462228,0.31690748,95954.0,95953.0,0.00032925]
[1739448462835,0.156353,95937.0,95934.0,0.06107922]
[1739448463047,0.156353,95937.0,95934.0,0.06112319]
[1739448463256,0.0074283,95936.0,95934.0,0.06112319]
[1739448463479,0.05801268,95936.0,95934.0,0.06112319]
[1739448463677,0.21436668,95936.0,95934.0,0.06112319]
[1739448464285,0.05058438,95935.0,95934.0,0.06212319]
[1739448464457,0.08242179,95935.0,95934.0,0.06212319]
[1739448464658,0.08985009,95935.0,95934.0,0.06112319]
[1739448465076,0.08985009,95935.0,95934.0,0.06212319]
[1739448465563,0.08985009,95935.0,95934.0,0.06612319]
[1739448465860,0.08985009,95935.0,95934.0,0.06212319]
[1739448466104,0.05801268,95935.0,95934.0,0.06712319]
[1739448466332,0.0833557,95935.0,95934.0,0.06712319]
[1739448466560,0.08987622,95935.0,95934.0,0.06612319]
[1739448466996,0.0074283,95935.0,95934.0,0.22248019]
[1739448467428,0.304,95953.0,95941.0,0.208459]
[1739448467632,0.156334,95949.0,95943.0,0.156342]
[1739448467845,0.156332,95950.0,95944.0,0.15634]
[1739448468130,0.304,95953.0,95934.0,0.06712319]
[1739448468378,0.304,95953.0,95947.0,0.208446]
[1739448468619,0.0009865,95954.0,95934.0,0.06112319]
[1739448468856,0.31101612,95952.0,95936.0,0.208472]
[1739448469102,0.31001612,95952.0,95943.0,0.208455]
[1739448469341,0.46634412,95952.0,95946.0,0.156337]
[1739448469579,0.01935729,95951.0,95947.0,0.156336]
[1739448470066,0.05122817,95951.0,95947.0,0.156336]
[1739448470537,0.05122817,95951.0,95945.0,0.208451]
[1739448470799,0.01935729,95950.0,95937.0,0.20847]
[1739448471008,0.05122817,95950.0,95937.0,0.20847]
[1739448471274,0.05122817,95950.0,95948.0,0.156334]
[1739448472186,0.03187088,95949.0,95948.0,0.156334]
[1739448472639,0.05122817,95949.0,95948.0,0.156334]
[1739448473939,0.05222817,95949.0,95948.0,0.156334]
[1739448474168,0.05222817,95949.0,95948.0,0.236634]
[1739448474783,0.0595922,95949.0,95948.0,0.236634]
[1739448476696,0.2159252,95949.0,95948.0,0.0803]
[1739448476914,0.156342,95943.0,95942.0,0.0771]
[1739448477121,0.15634,95945.0,95936.0,0.0499]
[1739448477258,0.27692381,95949.0,95936.0,0.0499]
[1739448477478,0.00736403,95944.0,95935.0,0.0771]
[1739448477679,0.06747881,95949.0,95935.0,0.0771]
[1739448477930,0.156348,95940.0,95935.0,0.0771]
[1739448478103,0.00737119,95939.0,95935.0,0.0771]
[1739448478320,0.01625064,95936.0,95935.0,0.0771]
[1739448478714,0.02362183,95936.0,95935.0,0.0771]
[1739448478942,0.01625064,95936.0,95935.0,0.233455]
[1739448479519,0.05122843,95936.0,95935.0,0.233455]
[1739448479727,0.05122843,95936.0,95935.0,0.237455]
[1739448480155,0.05122843,95936.0,95935.0,0.238455]
[1739448480613,0.04470828,95936.0,95935.0,0.34095865]
[1739448481848,0.02535099,95936.0,95935.0,0.34095865]
[1739448485929,0.02535099,95936.0,95935.0,0.53795865]
[1739448486155,0.02535099,95936.0,95935.0,0.59350766]
[1739448486566,0.00975038,95936.0,95935.0,0.59350766]
[1739448486975,0.00975038,95936.0,95935.0,0.58850766]
[1739448487177,0.01075038,95936.0,95935.0,0.59550766]
[1739448487574,0.001,95936.0,95935.0,0.59550766]
[1739448487960,1e-06,95936.0,95935.0,0.60550766]
[1739448488341,1e-06,95936.0,95935.0,0.61550766]
[1739448489053,1e-06,95936.0,95935.0,0.61350766]
[1739448489266,1e-06,95936.0,95935.0,0.62050766]
[1739448489468,0.00022408,95951.0,95940.0,0.02]
[1739448489621,0.00022408,95951.0,95950.0,0.329331]
[1739448489820,0.00022408,95951.0,95950.0,2.66038158]
[1739448491686,8e-08,95951.0,95950.0,2.66038158]
[1739448491895,8e-08,95951.0,95950.0,2.67638158]
[1739448492098,8e-08,95951.0,95950.0,2.80007101]
[1739448492301,8e-08,95951.0,95950.0,2.68338158]
[1739448492761,8e-08,95951.0,95950.0,2.69338158]
[1739448493432,8e-08,95951.0,95950.0,2.71438447]
[1739448495062,8e-08,95951.0,95950.0,2.72605338]
[1739448498227,8e-08,95951.0,95950.0,3.04775338]
[1739448502159,8e-08,95951.0,95950.0,3.04786008]
[1739448502380,0.00022416,95951.0,95950.0,3.04786008]
[1739448502884,0.00022416,95951.0,95950.0,2.00365112]
[1739448503121,0.00022416,95951.0,95950.0,1.96110211]
[1739448503299,0.00022416,95951.0,95950.0,1.97110211]
[1739448503556,0.00022416,95951.0,95950.0,1.96110211]
[1739448504113,0.00022416,95951.0,95950.0,1.63940211]
[1739448506288,0.00022416,95951.0,95950.0,1.64940211]
[1739448509480,0.00022416,95951.0,95950.0,1.63940211]
[1739448509711,0.00022416,95951.0,95950.0,1.64940211]
[1739448510190,0.00022416,95951.0,95950.0,1.97110211]
[1739448510412,0.00022416,95951.0,95950.0,1.96110211]
[1739448510628,0.00022416,95951.0,95950.0,1.97110211]
[1739448510966,0.00022416,95951.0,95950.0,1.96110211]
[1739448511949,0.00022416,95951.0,95950.0,0.85821026]
[1739448512158,0.00022416,95951.0,95950.0,0.77831026]
[1739448515357,0.00022416,95951.0,95950.0,0.76664135]
[1739448515975,0.00022416,95951.0,95950.0,0.44494135]
[1739448516890,0.00022416,95951.0,95950.0,1.47913031]
[1739448517117,0.00022416,95951.0,95950.0,1.51158578]
[1739448517328,0.00022416,95951.0,95950.0,1.58698578]
[1739448517522,1.6e-07,95951.0,95950.0,1.64498578]
[1739448518118,1.6e-07,95951.0,95950.0,1.97668578]
[1739448518563,1.6e-07,95951.0,95950.0,1.97068578]
[1739448518987,1.6e-07,95951.0,95950.0,1.97768578]
[1739448519354,3e-08,95969.0,95968.0,0.326302]
[1739448519598,3e-08,95969.0,95968.0,2.67975904]
[1739448520641,3e-08,95969.0,95968.0,2.67980301]
[1739448521824,3e-08,95969.0,95968.0,2.68680301]
[1739448522158,9e-07,95983.0,95982.0,0.452579]
[1739448522311,9e-07,95983.0,95982.0,2.96818057]
[1739448522519,9e-07,95983.0,95982.0,3.00063604]
[1739448523167,9e-07,95983.0,95982.0,3.02120668]
[1739448524872,9e-07,95983.0,95982.0,3.02820668]
[1739448525044,9e-07,95983.0,95982.0,3.03520668]
[1739448525505,9e-07,95983.0,95982.0,3.02820668]
[1739448526057,9e-07,95983.0,95982.0,3.03520668]
[1739448527686,9e-07,95983.0,95982.0,3.02820668]
[1739448527881,9e-07,95983.0,95982.0,3.03520668]
[1739448528089,9e-07,95983.0,95982.0,3.02820668]
[1739448528304,9e-07,95983.0,95982.0,3.03520668]
[1739448529019,0.0009875,96009.0,96008.0,0.306236]
[1739448529275,0.0009875,96009.0,96008.0,2.53259304]
[1739448529515,0.12882194,96029.0,96024.0,0.30621]
[1739448529861,0.0009902,96028.0,96024.0,0.40871365]
[1739448529862,0.00805298,96025.0,96024.0,0.40871365]
[1739448530073,0.00022387,96025.0,96024.0,0.40871365]
[1739448530289,0.00066437,96025.0,96024.0,0.40871365]
[1739448531325,0.00066437,96025.0,96024.0,0.41471365]
[1739448531925,0.00066437,96025.0,96024.0,0.41971365]
[1739448533527,0.00066437,96025.0,96024.0,0.44271365]
[1739448533935,0.00066437,96025.0,96024.0,0.41971365]
[1739448535757,0.00066437,96025.0,96024.0,0.011]
[1739448535758,0.12496437,96025.0,96024.0,0.011]
[1739448535960,0.13281513,96025.0,96024.0,0.16721]
[1739448536745,0.13281513,96025.0,96024.0,0.006]
[1739448536947,0.12496437,96025.0,96024.0,0.006]
[1739448537270,0.13281513,96025.0,96024.0,0.15621]
[1739448537518,0.13281513,96025.0,96024.0,0.15921]
[1739448537856,0.12496437,96025.0,96024.0,0.15921]
[1739448538000,0.12496437,96025.0,96024.0,0.003]
[1739448538207,0.13281513,96025.0,96024.0,0.15921]
[1739448538414,0.13281513,96025.0,96024.0,0.16121]
[1739448538627,0.12496437,96025.0,96024.0,0.16121]
[1739448538836,0.12496437,96025.0,96024.0,0.15921]
[1739448539008,0.12496437,96025.0,96024.0,0.16221]
[1739448542275,0.00066437,96025.0,96024.0,0.16221]
[1739448542489,0.00066437,96025.0,96024.0,0.26575499]
[1739448542686,0.00066437,96025.0,96024.0,0.26471365]
[1739448543099,0.00066437,96025.0,96024.0,0.25871365]
[1739448543520,0.00066437,96025.0,96024.0,0.26071365]
[1739448544025,0.00066437,96025.0,96024.0,0.25871365]
[1739448544176,0.00066437,96025.0,96024.0,0.26371365]
[1739448544381,0.00066437,96025.0,96024.0,0.26471365]
[1739448545475,0.00066437,96025.0,96024.0,0.26371365]
[1739448545884,0.00066437,96025.0,96024.0,0.26771365]
[1739448546083,0.01552718,96041.0,96024.0,0.26771365]
[1739448546084,0.5,96045.0,96025.0,0.208279]
[1739448546294,0.5,96045.0,96023.0,0.208283]
[1739448546467,0.0078388,96043.0,96008.0,1.03418896]
[1739448546695,0.156195,96034.0,96028.0,0.156204]
[1739448546860,0.209231,96044.0,96010.0,0.26668943]
[1739448547229,0.156195,96034.0,96028.0,0.156204]
[1739448547564,0.000993,96044.0,96034.0,0.208258]
[1739448547787,0.1640188,96043.0,96036.0,0.156189]
[1739448548079,0.0078388,96043.0,96034.0,0.208258]
[1739448548262,0.0078388,96043.0,96028.0,0.002]
[1739448548412,0.0078388,96043.0,96042.0,0.156181]
[1739448548618,1.0,96050.0,96044.0,0.156178]
[1739448548822,0.50781994,96045.0,96044.0,0.156178]
[1739448550226,0.50781994,96045.0,96044.0,0.159178]
[1739448551451,0.50781994,96045.0,96044.0,0.162178]
[1739448557245,0.52340499,96045.0,96044.0,0.162178]
[1739448559361,0.53314642,96045.0,96044.0,0.162178]
[1739448561290,0.53337008,96045.0,96044.0,0.162178]
[1739448564624,0.51778503,96045.0,96044.0,0.162178]
[1739448565144,0.51778503,96045.0,96044.0,0.159178]
[1739448565322,0.51778503,96045.0,96044.0,0.162178]
[1739448566449,0.51778503,96045.0,96044.0,0.159178]
[1739448566657,0.51778503,96045.0,96044.0,0.232078]
[1739448566804,0.51778503,96045.0,96044.0,0.240078]
[1739448567736,0.33132317,96045.0,96044.0,0.236078]
[1739448567939,0.33132317,96045.0,96044.0,0.387078]
[1739448568121,0.33132317,96045.0,96044.0,0.386078]
[1739448568575,0.33132317,96045.0,96044.0,0.392078]
[1739448569751,0.33132317,96045.0,96044.0,0.382078]
[1739448569948,0.33132317,96045.0,96044.0,0.313178]
[1739448570180,0.33132317,96045.0,96044.0,0.320178]
[1739448580565,0.33132317,96045.0,96044.0,0.54398165]
[1739448580779,0.33132317,96045.0,96044.0,0.59947533]
[1739448581405,0.33132317,96045.0,96044.0,0.59247533]
[1739448581826,0.32158174,96045.0,96044.0,0.59947533]
[1739448582431,0.32158174,96045.0,96044.0,0.59247533]
[1739448582849,0.32158174,96045.0,96044.0,0.59947533]
[1739448583267,0.32158174,96045.0,96044.0,0.58547533]
[1739448583480,0.32158174,96045.0,96044.0,0.59947533]